bitfinex/quotes_BTCUSD_20250421
["timestamp","ask_amount","ask_price","bid_price","bid_amount"]
[1745252810168,0.27487529,87883.0,87861.0,0.0127496]
[1745252810372,0.60403123,87883.0,87861.0,0.0127496]
[1745252810571,0.22760896,87870.0,87861.0,0.0127496]
[1745252810792,0.37760896,87870.0,87861.0,0.0127496]
[1745252811570,0.37760896,87870.0,87853.0,0.419]
[1745252812120,0.37960896,87870.0,87853.0,0.419]
[1745252812867,0.22765042,87854.0,87853.0,0.01315321]
[1745252813069,0.2276556,87852.0,87851.0,0.002]
[1745252813693,0.3676556,87852.0,87851.0,0.002]
[1745252814854,0.3686556,87852.0,87851.0,0.002]
[1745252815192,0.3686556,87852.0,87851.0,0.004]
[1745252815574,0.3686556,87852.0,87851.0,0.002]
[1745252815778,0.3696556,87852.0,87851.0,0.004]
[1745252816207,0.3686556,87852.0,87851.0,0.002]
[1745252816407,0.3686556,87852.0,87851.0,0.004]
[1745252816702,0.3696556,87852.0,87851.0,0.004]
[1745252817516,0.3686556,87852.0,87851.0,0.004]
[1745252817918,0.3706556,87852.0,87851.0,0.004]
[1745252819925,0.4170556,87852.0,87851.0,0.004]
[1745252821751,0.52781154,87852.0,87851.0,0.002]
[1745252822019,0.57751154,87852.0,87851.0,0.002]
[1745252822224,0.73351421,87852.0,87851.0,0.002]
[1745252822444,0.22766337,87849.0,87848.0,0.02]
[1745252822585,0.53681931,87849.0,87848.0,0.02]
[1745252822960,1.33496993,87849.0,87848.0,1e-08]
[1745252823372,1.29271931,87849.0,87848.0,1e-08]
[1745252824262,1.35496016,87849.0,87848.0,1e-08]
[1745252824751,1.36196016,87849.0,87848.0,0.00100001]
[1745252825676,1.34741931,87849.0,87848.0,0.00100001]
[1745252826717,0.22771262,87830.0,87815.0,0.0004227]
[1745252826852,0.68682856,87830.0,87815.0,0.0004227]
[1745252827251,1.10272856,87830.0,87815.0,0.0004227]
[1745252827465,1.44272856,87830.0,87815.0,0.0004227]
[1745252827685,1.45560931,87830.0,87815.0,0.0004227]
[1745252827941,1.45105259,87830.0,87815.0,0.0004227]
[1745252828144,1.00929259,87830.0,87829.0,0.0014227]
[1745252828291,0.84943665,87830.0,87829.0,0.0014227]
[1745252828494,0.80693665,87830.0,87829.0,0.0004227]
[1745252828875,0.16432403,87830.0,87829.0,0.0004227]
[1745252829077,0.39203665,87830.0,87829.0,0.0004227]
[1745252829596,0.39003665,87830.0,87829.0,0.0004227]
[1745252829807,0.15932403,87830.0,87829.0,0.22813791]
[1745252830005,0.15932403,87830.0,87829.0,0.0004227]
[1745252830205,0.16432403,87830.0,87829.0,0.22813791]
[1745252830522,0.15932403,87830.0,87829.0,0.22813791]
[1745252830934,0.16332403,87830.0,87829.0,0.22813791]
[1745252831112,0.16232403,87830.0,87829.0,0.0004227]
[1745252831317,0.16032403,87830.0,87829.0,0.22813791]
[1745252831719,0.16132403,87830.0,87829.0,0.0004227]
[1745252831893,0.16232403,87830.0,87829.0,0.0004227]
[1745252832450,0.16232403,87830.0,87829.0,0.22813791]
[1745252834115,0.154,87830.0,87829.0,0.0004227]
[1745252834547,0.38171262,87830.0,87829.0,0.0004227]
[1745252835862,0.39008754,87830.0,87829.0,0.0004227]
[1745252836491,0.16237492,87830.0,87829.0,0.0004227]
[1745252836791,0.39008754,87830.0,87829.0,0.0004227]
[1745252838504,0.16237492,87830.0,87829.0,0.0004227]
[1745252838783,0.39008754,87830.0,87829.0,0.0004227]
[1745252840082,0.39008754,87830.0,87829.0,0.22813791]
[1745252840083,0.16237492,87830.0,87829.0,0.22813791]
[1745252841376,0.154,87830.0,87829.0,0.22813791]
[1745252841578,0.154,87830.0,87829.0,0.27593791]
[1745252843269,0.154,87830.0,87829.0,0.22813791]
[1745252843524,0.38171262,87830.0,87829.0,0.0004227]
[1745252846191,0.22776708,87809.0,87807.0,0.01279326]
[1745252846389,0.22776708,87809.0,87780.0,0.54811665]
[1745252846390,0.37776708,87809.0,87808.0,0.0004227]
[1745252846993,0.38612632,87809.0,87808.0,0.0004227]
[1745252847190,0.38712632,87809.0,87808.0,0.0004227]
[1745252847392,0.38712632,87809.0,87808.0,0.0014227]
[1745252847592,0.38812632,87809.0,87808.0,0.0014227]
[1745252847795,0.38812632,87809.0,87808.0,0.0004227]
[1745252848021,0.38912632,87809.0,87808.0,0.0014227]
[1745252848378,0.38812632,87809.0,87808.0,0.0014227]
[1745252848783,0.39012632,87809.0,87808.0,0.0014227]
[1745252849550,0.41120301,87809.0,87808.0,0.0014227]
[1745252850335,0.39012632,87809.0,87808.0,0.0014227]
[1745252850882,0.55218226,87809.0,87808.0,0.0014227]
[1745252851135,0.22778524,87802.0,87793.0,0.0004231]
[1745252851337,0.49154118,87802.0,87793.0,0.0004231]
[1745252851519,0.49150118,87802.0,87793.0,0.0004231]
[1745252851931,0.01139004,87796.0,87793.0,0.0004231]
[1745252852134,0.276106,87794.0,87793.0,0.0004231]
[1745252852348,0.416106,87794.0,87793.0,0.0004231]
[1745252852554,0.415106,87794.0,87793.0,0.0004231]
[1745252853399,0.52886194,87794.0,87793.0,0.0004231]
[1745252853623,0.53939218,87794.0,87793.0,0.0004231]
[1745252854074,0.53939218,87794.0,87777.0,1.63998434]
[1745252854075,0.22784752,87778.0,87777.0,1.63998434]
[1745252854295,0.36784752,87778.0,87777.0,1.63998434]
[1745252855219,0.41614752,87778.0,87777.0,1.63998434]
[1745252855426,0.41714752,87778.0,87777.0,1.63998434]
[1745252855628,0.41814752,87778.0,87777.0,1.63998434]
[1745252855834,0.36984752,87778.0,87777.0,1.63998434]
[1745252856235,0.142,87778.0,87777.0,1.63998434]
[1745252856439,0.001,87778.0,87777.0,1.75474028]
[1745252856846,0.002,87778.0,87777.0,1.75474028]
[1745252857076,0.001,87778.0,87777.0,1.75474028]
[1745252857276,0.001,87778.0,87777.0,1.64098434]
[1745252857277,0.171,87778.0,87777.0,1.64098434]
[1745252857456,0.173,87778.0,87777.0,1.64098434]
[1745252857878,0.171,87778.0,87777.0,1.64098434]
[1745252858083,0.172,87778.0,87777.0,1.64098434]
[1745252858428,0.171,87778.0,87777.0,1.64098434]
[1745252858758,0.173,87778.0,87777.0,1.64098434]
[1745252859455,0.173,87778.0,87777.0,1.42543515]
[1745252862252,0.171,87778.0,87777.0,1.42443515]
[1745252862452,0.174,87778.0,87777.0,1.42443515]
[1745252863312,0.173,87778.0,87777.0,1.42443515]
[1745252863746,0.174,87778.0,87777.0,1.65228527]
[1745252863961,0.174,87778.0,87777.0,1.42443515]
[1745252864163,0.174,87778.0,87777.0,1.65228527]
[1745252865170,0.171,87778.0,87777.0,1.65228527]
[1745252865404,0.174,87778.0,87777.0,1.65228527]
[1745252865867,0.171,87778.0,87777.0,1.65228527]
[1745252866387,0.173,87778.0,87777.0,1.65228527]
[1745252866586,0.173,87778.0,87777.0,2.26041859]
[1745252866587,0.003,87778.0,87777.0,2.26041859]
[1745252866968,0.002,87778.0,87777.0,2.26041859]
[1745252867170,0.003,87778.0,87777.0,2.26041859]
[1745252867578,0.23919375,87795.0,87792.0,0.22780921]
[1745252867724,0.16,87795.0,87794.0,0.227806]
[1745252867923,0.16845778,87795.0,87794.0,0.227806]
[1745252868123,0.16,87795.0,87794.0,0.227806]
[1745252868328,0.16,87795.0,87794.0,0.226806]
[1745252869242,0.166,87795.0,87794.0,0.226806]
[1745252870274,0.164,87795.0,87794.0,0.226806]
[1745252870450,0.161,87795.0,87794.0,0.227806]
[1745252870896,0.164,87795.0,87794.0,0.227806]
[1745252871649,0.164,87795.0,87794.0,0.001]
[1745252872468,0.164,87795.0,87794.0,0.228806]
[1745252873000,0.004,87795.0,87794.0,0.228806]
[1745252874185,0.004,87795.0,87794.0,0.001]
[1745252874762,0.2318034,87795.0,87794.0,0.001]
[1745252879761,0.3718034,87795.0,87794.0,0.001]
[1745252881270,0.4210034,87795.0,87794.0,0.001]
[1745252881512,0.22784752,87778.0,87777.0,1.42543515]
[1745252881770,0.38784752,87778.0,87777.0,1.42543515]
[1745252883595,0.38984752,87778.0,87777.0,1.42543515]
[1745252884027,0.38884752,87778.0,87777.0,1.42543515]
[1745252884221,0.38984752,87778.0,87777.0,1.42543515]
[1745252891299,0.162,87778.0,87777.0,1.42543515]
[1745252891653,0.162,87778.0,87777.0,1.65328527]
[1745252892408,0.162,87778.0,87777.0,1.42543515]
[1745252892914,0.38984752,87778.0,87777.0,1.42543515]
[1745252893140,0.162,87778.0,87777.0,1.42543515]
[1745252893560,0.38984752,87778.0,87777.0,1.42543515]
[1745252895467,0.162,87778.0,87777.0,1.42543515]
[1745252895846,0.38984752,87778.0,87777.0,1.42543515]
[1745252897216,0.43744752,87778.0,87777.0,1.42543515]
[1745252898287,0.162,87778.0,87777.0,2.20424121]
[1745252898494,0.002,87778.0,87777.0,2.20424121]
[1745252898853,0.002,87778.0,87777.0,1.70348527]
[1745252899095,0.002,87778.0,87777.0,1.65428527]
[1745252900044,0.022,87778.0,87777.0,1.65428527]
[1745252900244,0.022,87778.0,87777.0,1.42643515]
[1745252900461,0.022,87778.0,87777.0,1.65428527]
[1745252900681,0.022,87778.0,87777.0,1.42643515]
[1745252900880,0.022,87778.0,87777.0,1.65428527]
[1745252901077,0.022,87778.0,87777.0,1.42643515]
[1745252901322,0.24984752,87778.0,87777.0,1.42643515]
[1745252903477,0.24884752,87778.0,87777.0,1.42643515]
[1745252903679,0.29814752,87778.0,87777.0,1.42643515]
[1745252903882,0.34434752,87778.0,87777.0,1.42643515]
[1745252904129,0.0472,87777.0,87731.0,0.002]
[1745252904309,0.01140159,87707.0,87702.0,0.0113429]
[1745252904453,0.17140159,87707.0,87702.0,0.0113429]
[1745252904661,0.22804237,87703.0,87702.0,0.0113429]
[1745252904868,0.39804237,87703.0,87702.0,0.0113429]
[1745252905069,0.39804237,87703.0,87689.0,0.01319157]
[1745252905070,0.23946892,87695.0,87689.0,0.0004225]
[1745252905282,0.22807617,87690.0,87689.0,0.0004225]
[1745252905488,0.38807617,87690.0,87689.0,0.0004225]
[1745252907592,0.39007617,87690.0,87689.0,0.0004225]
[1745252908484,0.40461702,87690.0,87689.0,1e-08]
[1745252908696,0.40861702,87690.0,87689.0,1e-08]
[1745252909232,0.39007617,87690.0,87689.0,1e-08]
[1745252909444,0.50383211,87690.0,87689.0,1e-08]
[1745252909652,0.50983211,87690.0,87689.0,1e-08]
[1745252910279,0.50783211,87690.0,87689.0,1e-08]
[1745252910701,0.51183211,87690.0,87689.0,1e-08]
[1745252913357,0.51283211,87690.0,87689.0,1e-08]
[1745252920216,0.53774583,87690.0,87689.0,1e-08]
[1745252920852,0.95364583,87690.0,87689.0,1e-08]
[1745252921057,1.29364583,87690.0,87689.0,1e-08]
[1745252923819,1.31436129,87690.0,87689.0,1e-08]
[1745252924061,1.53511334,87690.0,87689.0,1e-08]
[1745252924493,1.40064583,87690.0,87689.0,1e-08]
[1745252925359,0.98474583,87690.0,87689.0,1e-08]
[1745252925569,1.00547113,87690.0,87689.0,1e-08]
[1745252926036,0.98474583,87690.0,87689.0,1e-08]
[1745252926490,0.228123,87672.0,87671.0,0.002]
[1745252926690,0.50187894,87672.0,87671.0,0.002]
[1745252926906,0.50187894,87672.0,87653.0,0.0004225]
[1745252926907,0.22813601,87667.0,87653.0,0.0004225]
[1745252927098,0.22816984,87654.0,87653.0,0.0004225]
[1745252927322,0.50192578,87654.0,87653.0,0.0004225]
[1745252927751,0.51229865,87654.0,87653.0,0.0004225]
[1745252927944,0.53308418,87654.0,87653.0,0.0004225]
[1745252928154,0.52292302,87654.0,87653.0,0.0004225]
[1745252928366,0.40916708,87654.0,87653.0,0.0004225]
[1745252928579,0.41316708,87654.0,87653.0,0.0004225]
[1745252928794,0.41214073,87654.0,87653.0,0.0004225]
[1745252930169,0.18397089,87654.0,87653.0,0.22859495]
[1745252930370,0.17534652,87654.0,87653.0,0.0004225]
[1745252930573,0.40351636,87654.0,87653.0,0.0004225]
[1745252930984,0.17534652,87654.0,87653.0,0.0014225]
[1745252931430,0.40351636,87654.0,87653.0,0.0014225]
[1745252931665,0.17534652,87654.0,87653.0,0.0014225]
[1745252931814,0.17534652,87654.0,87653.0,0.22959495]
[1745252932015,0.01637287,87654.0,87653.0,0.45039089]
[1745252932421,0.006,87654.0,87653.0,0.33659495]
[1745252932822,0.006,87654.0,87653.0,0.79035089]
[1745252933048,0.006,87654.0,87653.0,0.67659495]
[1745252933221,0.006,87654.0,87653.0,0.22955495]
[1745252933423,0.022,87654.0,87653.0,0.1084225]
[1745252933625,0.02,87654.0,87653.0,0.1084225]
[1745252933847,0.025,87654.0,87653.0,0.1084225]
[1745252934052,0.025,87654.0,87653.0,0.0013825]
[1745252937059,0.025,87654.0,87653.0,0.22955495]
[1745252937385,0.03551731,87654.0,87653.0,0.22955495]
[1745252937586,0.01551731,87654.0,87653.0,0.22955495]
[1745252937991,0.03655403,87654.0,87653.0,0.22955495]
[1745252938203,0.02603672,87654.0,87653.0,0.22955495]
[1745252938639,0.005,87654.0,87653.0,0.22955495]
[1745252939047,0.165,87654.0,87653.0,0.22955495]
[1745252939252,0.165,87654.0,87653.0,0.0013825]
[1745252939456,0.165,87654.0,87653.0,0.22955495]
[1745252940900,0.165,87654.0,87653.0,0.0013825]
[1745252941122,0.39316984,87654.0,87653.0,0.0013825]
[1745252941687,0.14657625,87654.0,87653.0,0.0013825]
[1745252942565,0.37474609,87654.0,87653.0,0.0013825]
[1745252944037,0.35369531,87654.0,87653.0,0.0013825]
[1745252944815,0.37475198,87654.0,87653.0,0.0013825]
[1745252945505,0.48850792,87654.0,87653.0,0.0013825]
[1745252945829,0.37475198,87654.0,87653.0,0.0013825]
[1745252946032,0.35369531,87654.0,87653.0,0.0013825]
[1745252946232,0.35669531,87654.0,87653.0,0.0023825]
[1745252946847,0.35769531,87654.0,87653.0,0.0033825]
[1745252947044,0.37875404,87654.0,87653.0,0.0033825]
[1745252947670,0.35769531,87654.0,87653.0,0.0033825]
[1745252948096,0.47145125,87654.0,87653.0,0.0033825]
[1745252948677,0.56615125,87654.0,87653.0,0.0033825]
[1745252949509,0.52045125,87654.0,87653.0,0.0033825]
[1745252949807,0.51645125,87654.0,87653.0,0.0013825]
[1745252950057,0.47245125,87654.0,87653.0,0.0033825]
[1745252950232,0.47245125,87654.0,87653.0,0.0023825]
[1745252950435,0.46945125,87654.0,87653.0,0.0013825]
[1745252950635,0.47245125,87654.0,87653.0,0.0023825]
[1745252950833,0.46192578,87654.0,87653.0,0.0023825]
[1745252951052,0.48298824,87654.0,87653.0,0.0023825]
[1745252951433,0.48798824,87654.0,87653.0,0.0023825]
[1745252953062,0.46692578,87654.0,87653.0,0.0023825]
[1745252953475,0.36369954,87654.0,87653.0,0.0023825]
[1745252954041,0.1355297,87654.0,87653.0,0.23055495]
[1745252954439,0.125,87654.0,87653.0,0.23055495]
[1745252956000,0.35316984,87654.0,87653.0,0.0023825]
[1745252957129,0.46692578,87654.0,87653.0,0.0023825]
[1745252957275,0.47745721,87654.0,87653.0,0.0023825]
[1745252957500,0.36370127,87654.0,87653.0,0.0023825]
[1745252959520,0.38476709,87654.0,87653.0,0.0023825]
[1745252960123,0.15659725,87654.0,87653.0,0.0023825]
[1745252960352,0.15659725,87654.0,87653.0,0.23055495]
[1745252960550,0.38476709,87654.0,87653.0,0.0023825]
[1745252961170,0.37423566,87654.0,87653.0,0.0023825]
[1745252962585,0.35316984,87654.0,87653.0,0.0023825]
[1745252965108,0.37425061,87654.0,87653.0,0.0023825]
[1745252965731,0.35316984,87654.0,87653.0,0.0023825]
[1745252966346,0.125,87654.0,87653.0,0.0023825]
[1745252966759,0.125,87654.0,87653.0,0.23055495]
[1745252966960,0.125,87654.0,87653.0,0.27835495]
[1745252967158,0.125,87654.0,87653.0,0.32495495]
[1745252967586,0.12,87654.0,87653.0,0.32495495]
[1745252967744,0.122,87654.0,87653.0,0.32495495]
[1745252968121,0.122,87654.0,87653.0,0.32595495]
[1745252968470,0.117,87654.0,87653.0,0.32495495]
[1745252968814,0.119,87654.0,87653.0,0.32595495]
[1745252969038,0.004,87654.0,87653.0,0.43971089]
[1745252969243,0.01054527,87670.0,87669.0,0.22813081]
[1745252969447,0.16054527,87670.0,87669.0,0.22813081]
[1745252969668,0.16054527,87670.0,87669.0,0.27593081]
[1745252969874,0.15,87670.0,87669.0,0.27593081]
[1745252970335,0.01140393,87689.0,87669.0,0.27593081]
[1745252970336,0.0018464,87690.0,87689.0,0.22807877]
[1745252970526,0.1618464,87690.0,87689.0,0.72963471]
[1745252970932,0.1608464,87690.0,87689.0,0.72963471]
[1745252971376,0.0008464,87690.0,87689.0,0.73063471]
[1745252972006,0.0008464,87690.0,87689.0,0.73163471]
[1745252972200,0.0018464,87690.0,87689.0,0.73163471]
[1745252972540,0.0038464,87690.0,87689.0,0.61351594]
[1745252972759,0.1738464,87690.0,87689.0,0.84159471]
[1745252974517,0.1738464,87690.0,87689.0,0.73263471]
[1745252974729,0.1738464,87690.0,87689.0,0.003]
[1745252975275,0.1728464,87690.0,87689.0,0.002]
[1745252975474,0.1708464,87690.0,87689.0,0.001]
[1745252975676,0.1718464,87690.0,87689.0,0.003]
[1745252976086,0.1708464,87690.0,87689.0,0.002]
[1745252976509,0.1728464,87690.0,87689.0,0.002]
[1745252976927,0.1728464,87690.0,87689.0,0.001]
[1745252976928,0.1708464,87690.0,87689.0,0.001]
[1745252977281,0.1728464,87690.0,87689.0,0.002]
[1745252977914,0.1748464,87690.0,87689.0,0.003]
[1745252978271,0.1728464,87690.0,87689.0,0.002]
[1745252978691,0.16766135,87690.0,87689.0,0.002]
[1745252979285,0.16966135,87690.0,87689.0,0.003]
[1745252982087,0.39773752,87690.0,87689.0,0.003]
[1745252982430,0.39773752,87690.0,87689.0,0.002]
[1745252982987,0.39777752,87690.0,87689.0,0.002]
[1745252984404,0.16970135,87690.0,87689.0,0.002]
[1745252984602,0.39777752,87690.0,87689.0,0.002]
[1745252986718,0.16970135,87690.0,87689.0,0.002]
[1745252986943,0.39777752,87690.0,87689.0,0.002]
[1745252987103,0.16970135,87690.0,87689.0,0.002]
[1745252987305,0.16970135,87690.0,87689.0,0.23007877]
[1745252990686,0.16970135,87690.0,87689.0,0.34483471]
[1745252991952,0.16970135,87690.0,87689.0,0.73093471]
[1745252992114,0.00404,87690.0,87689.0,0.73093471]
[1745252992351,0.17404,87690.0,87689.0,0.73093471]
[1745252992472,0.00404,87690.0,87689.0,0.73093471]
[1745252993749,0.0008462,87702.0,87701.0,0.22804757]
[1745252993978,0.1608462,87702.0,87701.0,0.34408364]
[1745252994113,0.1608462,87702.0,87701.0,0.77760351]
[1745252994987,0.1638462,87702.0,87701.0,0.77960351]
[1745252995229,0.1668462,87702.0,87701.0,0.77960351]
[1745252995437,0.1638462,87702.0,87701.0,0.77860351]
[1745252996147,0.1668462,87702.0,87701.0,0.77960351]
[1745252996558,0.1608462,87702.0,87701.0,0.77760351]
[1745252997312,0.1628462,87702.0,87701.0,0.77760351]
[1745252997549,0.1628462,87702.0,87701.0,0.88648351]
[1745252997916,0.1608462,87702.0,87701.0,0.88648351]
[1745252998115,0.1608462,87702.0,87701.0,0.88748351]
[1745252998342,0.1608462,87702.0,87701.0,0.88848351]
[1745253000708,0.1608462,87702.0,87701.0,0.57004757]
[1745253000862,0.1608462,87702.0,87701.0,0.23004757]
[1745253004527,0.1608462,87702.0,87701.0,0.35834436]
[1745253004756,0.1608462,87702.0,87701.0,0.46722436]
[1745253004967,0.1608462,87702.0,87701.0,0.45268351]
[1745253006025,0.1608462,87702.0,87701.0,0.33892757]
[1745253007402,0.38889117,87702.0,87701.0,0.002]
[1745253007610,0.01140276,87698.0,87681.0,0.01140497]
[1745253007861,0.01140328,87694.0,87683.0,0.01140471]
[1745253008057,0.01140354,87692.0,87680.0,0.0114051]
[1745253008261,0.01140419,87687.0,87678.0,0.10732]
[1745253008467,0.16140419,87687.0,87683.0,0.22809335]
[1745253008663,0.01140432,87686.0,87678.0,0.10732]
[1745253008871,0.22810479,87679.0,87666.0,0.01140693]
[1745253009099,0.17140523,87679.0,87677.0,0.22810908]
[1745253009304,0.16,87679.0,87674.0,0.23952124]
[1745253009506,0.159,87679.0,87677.0,0.22810845]
[1745253009711,0.01140536,87678.0,87671.0,0.2281238]
[1745253009918,0.01140549,87677.0,87674.0,0.22811747]
[1745253010125,0.15140549,87677.0,87673.0,0.2281204]
[1745253010329,0.379517,87677.0,87673.0,0.22811825]
[1745253010536,0.14,87677.0,87674.0,0.22811759]
[1745253010942,0.01140575,87675.0,87672.0,0.22812223]
[1745253011152,0.17,87675.0,87674.0,0.001]
[1745253012189,0.171,87675.0,87673.0,0.22811958]
[1745253012603,0.172,87675.0,87673.0,0.22811958]
[1745253012815,0.172,87675.0,87674.0,0.11375594]
[1745253013027,0.001,87675.0,87674.0,0.11375594]
[1745253013429,0.002,87675.0,87674.0,0.11375594]
[1745253013895,0.001,87675.0,87674.0,0.11375594]
[1745253014155,0.01140406,87688.0,87681.0,0.01140497]
[1745253014368,0.17140406,87688.0,87683.0,0.2280927]
[1745253014543,0.16,87688.0,87686.0,0.22808551]
[1745253015396,0.161,87688.0,87686.0,0.22808551]
[1745253015596,0.162,87688.0,87686.0,0.22808551]
[1745253016005,0.164,87688.0,87686.0,0.22908551]
[1745253016205,0.162,87688.0,87686.0,0.22908551]
[1745253016415,0.165,87688.0,87686.0,0.002]
[1745253016619,0.39308293,87688.0,87686.0,0.002]
[1745253016843,0.165,87688.0,87686.0,0.23008639]
[1745253017479,0.165,87688.0,87686.0,0.002]
[1745253017690,0.165,87688.0,87687.0,0.22808398]
[1745253018114,0.165,87688.0,87686.0,0.002]
[1745253018323,0.22808398,87687.0,87686.0,0.002]
[1745253018521,0.38808398,87687.0,87686.0,0.001]
[1745253018772,0.22809392,87684.0,87680.0,0.2281016]
[1745253018961,0.37809392,87684.0,87681.0,0.22809815]
[1745253019243,0.01140536,87678.0,87675.0,0.10732]
[1745253019420,0.17,87678.0,87677.0,0.22810999]
[1745253019976,0.17,87678.0,87677.0,0.34186593]
[1745253020431,0.002,87688.0,87687.0,0.22808398]
[1745253020635,0.152,87688.0,87687.0,0.22808398]
[1745253020844,0.15,87688.0,87687.0,0.22808398]
[1745253021488,0.14808,87688.0,87687.0,0.22808398]
[1745253021967,0.15008,87688.0,87687.0,0.22908398]
[1745253022539,0.15308,87688.0,87687.0,0.23008398]
[1745253022925,0.15008,87688.0,87687.0,0.22908398]
[1745253023321,0.15308,87688.0,87687.0,0.23008398]
[1745253023949,0.15108,87688.0,87687.0,0.22908398]
[1745253024248,0.15308,87688.0,87687.0,0.23008398]
[1745253026505,0.15308,87688.0,87687.0,0.002]
[1745253027126,0.15308,87688.0,87687.0,0.23008398]
[1745253027899,0.15308,87688.0,87687.0,0.002]
[1745253028103,0.38116137,87688.0,87687.0,0.002]
[1745253028304,0.42936137,87688.0,87687.0,0.002]
[1745253029370,0.38116137,87688.0,87687.0,0.002]
[1745253029790,0.15308,87688.0,87687.0,0.002]
[1745253029956,0.15308,87688.0,87687.0,0.23008398]
[1745253030805,0.15308,87688.0,87684.0,0.01140458]
[1745253031002,0.15408,87688.0,87687.0,0.22808398]
[1745253031207,0.15408,87688.0,87658.0,0.09096905]
[1745253031410,0.15408,87688.0,87680.0,0.22810096]
[1745253031614,0.01140445,87685.0,87682.0,0.22809698]
[1745253031841,0.15140445,87685.0,87681.0,0.22809768]
[1745253032041,0.14,87685.0,87684.0,0.001]
[1745253032247,0.36808918,87685.0,87684.0,0.001]
[1745253032425,0.01140471,87683.0,87680.0,0.22810057]
[1745253032627,0.0114025,87700.0,87687.0,0.22808398]
[1745253032795,0.143,87688.0,87687.0,0.22808398]
[1745253032998,0.141,87688.0,87687.0,0.22808398]
[1745253033866,0.143,87688.0,87687.0,0.22908398]
[1745253034293,0.143,87688.0,87687.0,0.001]
[1745253034497,0.37108137,87688.0,87687.0,0.001]
[1745253034870,0.143,87688.0,87687.0,0.001]
[1745253035073,0.147,87688.0,87687.0,0.002]
[1745253035815,0.37508137,87688.0,87687.0,0.002]
[1745253036107,0.147,87688.0,87687.0,0.002]
[1745253037124,0.37508137,87688.0,87687.0,0.002]
[1745253037353,0.147,87688.0,87687.0,0.002]
[1745253037553,0.147,87688.0,87687.0,0.23008398]
[1745253037910,0.147,87688.0,87687.0,0.002]
[1745253038138,0.147,87688.0,87687.0,0.23008398]
[1745253039721,0.147,87688.0,87687.0,0.002]
[1745253040128,0.147,87688.0,87687.0,0.23008398]
[1745253042213,0.146,87688.0,87687.0,0.23008398]
[1745253043008,0.147,87688.0,87687.0,0.23008398]
[1745253044971,0.147,87688.0,87687.0,0.34612063]
[1745253044972,0.007,87688.0,87687.0,0.34612063]
[1745253045197,0.007,87688.0,87687.0,0.44083992]
[1745253046034,0.007,87688.0,87687.0,0.79538077]
[1745253046824,0.0008462,87702.0,87701.0,0.22804757]
[1745253047034,0.1408462,87702.0,87701.0,0.34408353]
[1745253047248,0.1408462,87702.0,87701.0,0.51020436]
[1745253047458,0.0008462,87702.0,87701.0,0.51020436]
[1745253047592,0.0008462,87702.0,87701.0,0.85020436]
[1745253048021,0.250845,87724.0,87723.0,0.22799037]
[1745253048250,0.250845,87724.0,87723.0,0.80304716]
[1745253048473,0.250845,87724.0,87723.0,0.78850631]
[1745253049541,0.252845,87724.0,87723.0,0.78850631]
[1745253050366,0.252845,87724.0,87723.0,0.81585648]
[1745253052042,1e-08,87724.0,87723.0,0.81585648]
[1745253052264,1e-08,87724.0,87723.0,1.23485648]
[1745253053548,1e-08,87724.0,87723.0,1.28005648]
[1745253054291,0.000846,87726.0,87725.0,0.58252603]
[1745253054490,0.000846,87726.0,87725.0,1.16088197]
[1745253055643,0.000846,87726.0,87725.0,1.16188197]
[1745253056054,0.000846,87726.0,87725.0,1.16388197]
[1745253056260,0.002,87729.0,87726.0,0.36593997]
[1745253056461,1e-08,87729.0,87728.0,0.69627417]
[1745253056605,1e-08,87729.0,87728.0,1.11527417]
[1745253057081,1e-08,87729.0,87728.0,1.21047417]
[1745253058130,1e-08,87729.0,87728.0,1.21147417]
[1745253058388,1e-08,87729.0,87728.0,1.21347417]
[1745253058585,0.0008464,87742.0,87728.0,1.21347417]
[1745253058586,1e-08,87738.0,87737.0,0.58249484]
[1745253058756,1e-08,87738.0,87737.0,0.74145078]
[1745253059158,0.5,87743.0,87742.0,0.34]
[1745253059407,0.5,87743.0,87742.0,0.88829679]
[1745253059989,0.5,87743.0,87742.0,0.90942219]
[1745253060358,0.5,87743.0,87742.0,0.88829679]
[1745253060776,0.002,87759.0,87753.0,0.58245328]
[1745253060985,0.002,87759.0,87753.0,0.80288922]
[1745253061193,0.002,87759.0,87753.0,0.84938922]
[1745253061625,0.002,87759.0,87753.0,0.80288922]
[1745253062239,0.002,87759.0,87753.0,0.56535588]
[1745253062442,0.0028462,87754.0,87753.0,1.21226831]
[1745253063666,0.0038462,87754.0,87753.0,1.21226831]
[1745253066776,0.0038462,87754.0,87753.0,0.98556225]
[1745253067456,0.0038462,87754.0,87753.0,0.90298778]
[1745253068591,0.0038462,87754.0,87753.0,0.90754478]
[1745253068788,0.0038462,87754.0,87753.0,1.24754478]
[1745253070942,0.0038462,87754.0,87753.0,1.24298778]
[1745253071369,0.0038462,87754.0,87753.0,1.24754478]
[1745253071970,0.0038462,87754.0,87753.0,1.14086478]
[1745253072179,0.0038462,87754.0,87753.0,1.24666478]
[1745253072968,0.0038462,87754.0,87753.0,1.22556622]
[1745253074363,0.002,87759.0,87758.0,0.5824403]
[1745253074552,0.002,87759.0,87758.0,0.69619624]
[1745253075092,0.002,87759.0,87758.0,0.34165539]
[1745253075295,0.002,87759.0,87758.0,0.44745539]
[1745253075500,0.042,87759.0,87758.0,0.11375594]
[1745253075704,0.23929974,87757.0,87745.0,0.22793144]
[1745253075900,0.15,87757.0,87747.0,0.0113964]
[1745253076184,0.15,87757.0,87756.0,0.22790464]
[1745253076379,0.15,87757.0,87756.0,0.34166058]
[1745253076607,0.15,87757.0,87756.0,0.36288533]
[1745253076802,0.15,87757.0,87756.0,0.02122475]
[1745253077004,0.42370204,87757.0,87756.0,0.02122475]
[1745253077459,0.42670204,87757.0,87756.0,0.02122475]
[1745253077650,0.01139614,87749.0,87742.0,0.1058]
[1745253077826,0.39931897,87749.0,87745.0,0.22793087]
[1745253078041,0.16,87749.0,87748.0,0.22792542]
[1745253078238,0.16,87749.0,87747.0,0.22792802]
[1745253078802,0.17139614,87749.0,87745.0,0.22793087]
[1745253079037,0.23933931,87742.0,87739.0,0.1058]
[1745253079236,0.0458,87741.0,87739.0,0.1058]
[1745253079406,0.41374505,87741.0,87739.0,0.1058]
[1745253079570,0.1858,87741.0,87739.0,0.1058]